[Event "*** Titled Tuesday Blitz"]
[Site "Chess.com"]
[Date "2021.04.06"]
[Round "10"]
[White "J36225"]
[Black "Matols"]
[Result "1-0"]
[WhiteElo "2442"]
[BlackElo "2311"]
[TimeControl "180+1"]
[EndTime "11:57:00 PDT"]
[Termination "J36225 won by resignation"]

1. e4 {[%clk 0:03:00.9]} 1... e6 {[%clk 0:03:00]} 2. d4 {[%clk 0:02:57.4]} 2...
d5 {[%clk 0:03:00]} 3. Nd2 {[%clk 0:02:57.9]} 3... c5 {[%clk 0:02:59.3]} 4. exd5
{[%clk 0:02:57.7]} 4... Qxd5 {[%clk 0:03:00.2]} 5. Ngf3 {[%clk 0:02:57.4]} 5...
cxd4 {[%clk 0:03:00.4]} 6. Bc4 {[%clk 0:02:56.7]} 6... Qd6 {[%clk 0:03:00]} 7.
O-O {[%clk 0:02:56]} 7... Nf6 {[%clk 0:03:00.3]} 8. Nb3 {[%clk 0:02:55.7]} 8...
Nc6 {[%clk 0:03:00.4]} 9. Nbxd4 {[%clk 0:02:56]} 9... Nxd4 {[%clk 0:03:01.3]}
10. Qxd4 {[%clk 0:02:56.2]} 10... Qxd4 {[%clk 0:03:00.6]} 11. Nxd4 {[%clk
0:02:57.1]} 11... Bd7 {[%clk 0:03:00.8]} 12. Bg5 {[%clk 0:02:54.8]} 12... Rc8
{[%clk 0:03:00.2]} 13. Bb3 {[%clk 0:02:54.5]} 13... Bc5 {[%clk 0:02:59.6]} 14.
Rad1 {[%clk 0:02:53]} 14... h6 {[%clk 0:02:41.9]} 15. Bh4 {[%clk 0:02:49.1]}
15... g5 {[%clk 0:02:40.1]} 16. Bg3 {[%clk 0:02:48.6]} 16... Ke7 {[%clk
0:02:36.6]} 17. Rfe1 {[%clk 0:02:43.9]} 17... Bxd4 {[%clk 0:02:25.5]} 18. Rxd4
{[%clk 0:02:40.4]} 18... Bc6 {[%clk 0:02:21.9]} 19. Bd6+ {[%clk 0:02:38.1]}
19... Ke8 {[%clk 0:02:19.2]} 20. Be5 {[%clk 0:02:28.4]} 20... Ke7 {[%clk
0:02:17.9]} 21. Red1 {[%clk 0:02:23.4]} 21... Rhg8 {[%clk 0:01:58.3]} 22. c4
{[%clk 0:02:00.2]} 22... Ne4 {[%clk 0:01:36]} 23. Bc2 {[%clk 0:01:53.4]} 23...
Nf6 {[%clk 0:01:23.8]} 24. b4 {[%clk 0:01:44.6]} 24... a6 {[%clk 0:01:13.5]} 25.
a4 {[%clk 0:01:42.4]} 25... b5 {[%clk 0:00:43.4]} 26. Bd6+ {[%clk 0:01:18.1]}
26... Ke8 {[%clk 0:00:42.5]} 27. axb5 {[%clk 0:01:06.6]} 27... axb5 {[%clk
0:00:42.1]} 28. c5 {[%clk 0:00:48.1]} 28... Nd5 {[%clk 0:00:41.4]} 29. Be4
{[%clk 0:00:43]} 29... Kd7 {[%clk 0:00:38.9]} 30. Be5 {[%clk 0:00:39.7]} 30...
Ra8 {[%clk 0:00:37.5]} 31. f3 {[%clk 0:00:32.7]} 31... Ra4 {[%clk 0:00:36.3]}
32. Bg3 {[%clk 0:00:19.9]} 32... Rga8 {[%clk 0:00:33.7]} 33. Bxd5 {[%clk
0:00:16.2]} 33... Bxd5 {[%clk 0:00:32.9]} 34. Rxd5+ {[%clk 0:00:16.8]} 34...
exd5 {[%clk 0:00:32.6]} 35. Rxd5+ {[%clk 0:00:17.1]} 35... Ke7 {[%clk
0:00:28.8]} 36. c6 {[%clk 0:00:16.8]} 36... Ra1+ {[%clk 0:00:24.2]} 37. Kf2
{[%clk 0:00:16.6]} 37... Rc1 {[%clk 0:00:23.4]} 38. Rd7+ {[%clk 0:00:15.9]}
38... Ke8 {[%clk 0:00:19.4]} 39. Rc7 {[%clk 0:00:16.1]} 39... Ra2+ {[%clk
0:00:17.9]} 40. Ke3 {[%clk 0:00:15.7]} 40... Rac2 {[%clk 0:00:17.5]} 41. Rc8+
{[%clk 0:00:12.5]} 41... Ke7 {[%clk 0:00:17.6]} 42. c7 {[%clk 0:00:13.1]} 42...
Kf6 {[%clk 0:00:16.3]} 43. Rb8 {[%clk 0:00:09.6]} 43... Rc3+ {[%clk 0:00:14.3]}
44. Kd4 {[%clk 0:00:09.5]} 44... Rc4+ {[%clk 0:00:13.9]} 45. Kd3 {[%clk
0:00:08.8]} 45... Rd1+ {[%clk 0:00:13.5]} 46. Ke2 {[%clk 0:00:08.6]} 46... Rdc1
{[%clk 0:00:13.7]} 47. Rxb5 {[%clk 0:00:08.2]} 47... R1c3 {[%clk 0:00:09.7]} 48.
Rb6+ {[%clk 0:00:06.1]} 48... Kf5 {[%clk 0:00:08.8]} 49. Rb5+ {[%clk 0:00:06.4]}
49... Kf6 {[%clk 0:00:08.1]} 50. Be5+ {[%clk 0:00:06.4]} 50... Ke6 {[%clk
0:00:08.4]} 51. Bxc3 {[%clk 0:00:06.6]} 51... Rxc3 {[%clk 0:00:08]} 52. Rc5
{[%clk 0:00:06.4]} 1-0

[Event "*** Titled Tuesday Blitz"]
[Site "Chess.com"]
[Date "2021.04.06"]
[Round "10"]
[White "Chuchofrio1"]
[Black "C_K_G"]
[Result "0-1"]
[WhiteElo "2367"]
[BlackElo "2091"]
[TimeControl "180+1"]
[EndTime "11:57:01 PDT"]
[Termination "C_K_G won by checkmate"]

1. e4 {[%clk 0:03:00.9]} 1... c5 {[%clk 0:02:55.6]} 2. Nc3 {[%clk 0:03:00.2]}
2... d6 {[%clk 0:02:54.4]} 3. Bb5+ {[%clk 0:02:58.2]} 3... Nc6 {[%clk
0:02:53.9]} 4. Bxc6+ {[%clk 0:02:57.3]} 4... bxc6 {[%clk 0:02:53.4]} 5. f4
{[%clk 0:02:58]} 5... e6 {[%clk 0:02:53]} 6. Nf3 {[%clk 0:02:55.6]} 6... Qc7
{[%clk 0:02:51.9]} 7. O-O {[%clk 0:02:54.6]} 7... Nf6 {[%clk 0:02:51.4]} 8. d3
{[%clk 0:02:52.6]} 8... Be7 {[%clk 0:02:49.8]} 9. Qe1 {[%clk 0:02:50.3]} 9...
O-O {[%clk 0:02:49]} 10. Qg3 {[%clk 0:02:49.6]} 10... Kh8 {[%clk 0:02:48.5]} 11.
Bd2 {[%clk 0:02:46.1]} 11... a5 {[%clk 0:02:45.4]} 12. Rae1 {[%clk 0:02:41.4]}
12... Ba6 {[%clk 0:02:42.8]} 13. b3 {[%clk 0:02:32.5]} 13... Nh5 {[%clk
0:02:25.2]} 14. Qh3 {[%clk 0:02:29.6]} 14... Nf6 {[%clk 0:02:20.8]} 15. Ng5
{[%clk 0:02:18]} 15... h6 {[%clk 0:02:19.5]} 16. Nf3 {[%clk 0:02:16.6]} 16...
Kg8 {[%clk 0:02:16.6]} 17. Kh1 {[%clk 0:02:12.2]} 17... Rad8 {[%clk 0:01:58.9]}
18. Rg1 {[%clk 0:02:04.8]} 18... d5 {[%clk 0:01:55.6]} 19. e5 {[%clk 0:02:02]}
19... Nh7 {[%clk 0:01:51.5]} 20. g4 {[%clk 0:02:00.5]} 20... c4 {[%clk
0:01:46.2]} 21. bxc4 {[%clk 0:01:36.6]} 21... dxc4 {[%clk 0:01:47.1]} 22. d4
{[%clk 0:01:37.2]} 22... Bb7 {[%clk 0:01:37.7]} 23. g5 {[%clk 0:01:20.6]} 23...
c5 {[%clk 0:01:32.4]} 24. gxh6 {[%clk 0:01:12.3]} 24... g6 {[%clk 0:01:31.9]}
25. Ne4 {[%clk 0:01:04.7]} 25... cxd4 {[%clk 0:01:24.2]} 26. f5 {[%clk
0:00:52.8]} 26... exf5 {[%clk 0:01:22.5]} 27. Qxf5 {[%clk 0:00:53.7]} 27... Kh8
{[%clk 0:01:11.5]} 28. Qh3 {[%clk 0:00:45.2]} 28... c3 {[%clk 0:01:03.5]} 29.
Bc1 {[%clk 0:00:30.3]} 29... d3 {[%clk 0:00:55.6]} 30. cxd3 {[%clk 0:00:28.6]}
30... Rxd3 {[%clk 0:00:54]} 31. Qg4 {[%clk 0:00:24.8]} 31... Rxf3 {[%clk
0:00:47.8]} 32. Qxf3 {[%clk 0:00:23.5]} 32... Qxe5 {[%clk 0:00:47.9]} 33. Bf4
{[%clk 0:00:17.1]} 33... Qe6 {[%clk 0:00:41.6]} 34. Qxc3+ {[%clk 0:00:13.4]}
34... Nf6 {[%clk 0:00:35.3]} 35. Be5 {[%clk 0:00:11.7]} 35... Bxe4+ {[%clk
0:00:32.1]} 36. Rxe4 {[%clk 0:00:11.2]} 36... Kh7 {[%clk 0:00:31.9]} 37. Ree1
{[%clk 0:00:08.2]} 37... Qd5+ {[%clk 0:00:30.4]} 38. Rg2 {[%clk 0:00:08]} 38...
Nh5 {[%clk 0:00:25.4]} 39. Bg7 {[%clk 0:00:05.8]} 39... Re8 {[%clk 0:00:24]} 40.
Be5 {[%clk 0:00:05.4]} 40... Bb4 {[%clk 0:00:22.7]} 41. Qb2 {[%clk 0:00:02.3]}
41... Bxe1 {[%clk 0:00:21.9]} 42. Bg3 {[%clk 0:00:01.5]} 42... Bxg3 {[%clk
0:00:19.1]} 43. Qg7+ {[%clk 0:00:02.4]} 43... Nxg7 {[%clk 0:00:17.7]} 44. hxg3
{[%clk 0:00:03.3]} 44... Re1+ {[%clk 0:00:16.8]} 45. Kh2 {[%clk 0:00:04.2]}
45... Re3 {[%clk 0:00:16.4]} 46. hxg7 {[%clk 0:00:05.1]} 46... Kxg7 {[%clk
0:00:14.8]} 47. Rf2 {[%clk 0:00:04.2]} 47... Qf3 {[%clk 0:00:15.7]} 48. Rxf3
{[%clk 0:00:04.5]} 48... Rxf3 {[%clk 0:00:16.6]} 49. Kg2 {[%clk 0:00:05.4]}
49... Ra3 {[%clk 0:00:17.2]} 50. Kh3 {[%clk 0:00:05.1]} 50... Rxa2 {[%clk
0:00:18.1]} 51. Kh4 {[%clk 0:00:05.9]} 51... Ra4+ {[%clk 0:00:18.9]} 52. Kg5
{[%clk 0:00:06.8]} 52... Rb4 {[%clk 0:00:18.6]} 53. g4 {[%clk 0:00:07.2]} 53...
Rb3 {[%clk 0:00:19]} 54. Kh4 {[%clk 0:00:07.6]} 54... a4 {[%clk 0:00:19.3]} 55.
Kg5 {[%clk 0:00:07.9]} 55... a3 {[%clk 0:00:20.2]} 56. Kh4 {[%clk 0:00:08.2]}
56... a2 {[%clk 0:00:21.1]} 57. g5 {[%clk 0:00:08.6]} 57... a1=Q {[%clk
0:00:20.7]} 58. Kg4 {[%clk 0:00:09.1]} 58... Qa4# {[%clk 0:00:20.3]} 0-1

[Event "*** Titled Tuesday Blitz"]
[Site "Chess.com"]
[Date "2021.04.06"]
[Round "10"]
[White "NikolaGry"]
[Black "AlexSuv"]
[Result "1-0"]
[WhiteElo "2702"]
[BlackElo "2575"]
[TimeControl "180+1"]
[EndTime "11:57:03 PDT"]
[Termination "NikolaGry won by resignation"]

1. b3 {[%clk 0:02:50.2]} 1... e5 {[%clk 0:02:58.6]} 2. Bb2 {[%clk 0:02:49.8]}
2... Nc6 {[%clk 0:02:59]} 3. c4 {[%clk 0:02:50.4]} 3... g6 {[%clk 0:02:55.8]} 4.
e3 {[%clk 0:02:50.3]} 4... Bg7 {[%clk 0:02:56.4]} 5. Nf3 {[%clk 0:02:50.6]} 5...
Nge7 {[%clk 0:02:56.3]} 6. d4 {[%clk 0:02:50.9]} 6... exd4 {[%clk 0:02:56.2]} 7.
Nxd4 {[%clk 0:02:51.1]} 7... Nxd4 {[%clk 0:02:55.8]} 8. Bxd4 {[%clk 0:02:50.5]}
8... O-O {[%clk 0:02:55.7]} 9. Nc3 {[%clk 0:02:45.4]} 9... Nc6 {[%clk
0:02:54.9]} 10. Bxg7 {[%clk 0:02:44.3]} 10... Kxg7 {[%clk 0:02:55.8]} 11. Qd2
{[%clk 0:02:41.6]} 11... d6 {[%clk 0:02:52.8]} 12. Be2 {[%clk 0:02:37.4]} 12...
Be6 {[%clk 0:02:10.8]} 13. O-O {[%clk 0:02:36.1]} 13... f5 {[%clk 0:02:11]} 14.
Rfd1 {[%clk 0:02:31.8]} 14... Qf6 {[%clk 0:02:10.7]} 15. Rac1 {[%clk 0:02:26.7]}
15... Rad8 {[%clk 0:02:00]} 16. Bf3 {[%clk 0:02:25.4]} 16... g5 {[%clk
0:01:22.2]} 17. Nb5 {[%clk 0:02:11.9]} 17... Rf7 {[%clk 0:01:09.5]} 18. Qc3
{[%clk 0:01:28.2]} 18... a6 {[%clk 0:01:02.3]} 19. Qxf6+ {[%clk 0:01:19.1]}
19... Kxf6 {[%clk 0:01:02.1]} 20. Bxc6 {[%clk 0:01:09.4]} 20... bxc6 {[%clk
0:00:50.9]} 21. Nd4 {[%clk 0:01:04.5]} 21... c5 {[%clk 0:00:43.7]} 22. Ne2
{[%clk 0:01:04.3]} 22... Bd7 {[%clk 0:00:35.7]} 23. Nc3 {[%clk 0:01:01.7]} 23...
Bc6 {[%clk 0:00:36]} 24. f3 {[%clk 0:00:57]} 24... Re8 {[%clk 0:00:34.8]} 25.
Kf2 {[%clk 0:00:56.5]} 25... g4 {[%clk 0:00:32.3]} 26. Rg1 {[%clk 0:00:43.7]}
26... Rfe7 {[%clk 0:00:22.4]} 27. Rce1 {[%clk 0:00:39.3]} 27... h5 {[%clk
0:00:21.7]} 28. Rgf1 {[%clk 0:00:36.7]} 28... Kg5 {[%clk 0:00:20.4]} 29. f4+
{[%clk 0:00:34.7]} 29... Kg6 {[%clk 0:00:19.3]} 30. Re2 {[%clk 0:00:34.5]} 30...
h4 {[%clk 0:00:19.5]} 31. Rfe1 {[%clk 0:00:33]} 31... Rg7 {[%clk 0:00:18.2]} 32.
Kf1 {[%clk 0:00:32.8]} 32... g3 {[%clk 0:00:15.6]} 33. h3 {[%clk 0:00:32]} 33...
Rge7 {[%clk 0:00:15.7]} 34. Nd5 {[%clk 0:00:25.1]} 34... Bxd5 {[%clk 0:00:15.3]}
35. cxd5 {[%clk 0:00:25.2]} 35... Re4 {[%clk 0:00:16.2]} 36. Rc1 {[%clk
0:00:24.1]} 36... Rxe3 {[%clk 0:00:16.1]} 37. Rce1 {[%clk 0:00:21.3]} 37... Rxe2
{[%clk 0:00:09.9]} 38. Rxe2 {[%clk 0:00:21.5]} 38... Rxe2 {[%clk 0:00:03.8]} 39.
Kxe2 {[%clk 0:00:21.7]} 39... Kf7 {[%clk 0:00:03.9]} 40. Kd3 {[%clk 0:00:21.7]}
40... Ke8 {[%clk 0:00:04.3]} 41. a3 {[%clk 0:00:16.3]} 41... Kd7 {[%clk
0:00:04.3]} 42. b4 {[%clk 0:00:16.5]} 42... c4+ {[%clk 0:00:02.1]} 43. Kxc4
{[%clk 0:00:15.9]} 43... c6 {[%clk 0:00:03]} 44. Kd4 {[%clk 0:00:15.6]} 44...
Kc7 {[%clk 0:00:03]} 45. a4 {[%clk 0:00:14.9]} 45... cxd5 {[%clk 0:00:02.5]} 46.
Kxd5 {[%clk 0:00:15]} 46... Kd7 {[%clk 0:00:03.4]} 47. b5 {[%clk 0:00:14.8]}
47... axb5 {[%clk 0:00:04.1]} 48. axb5 {[%clk 0:00:14.9]} 48... Kc7 {[%clk
0:00:05]} 49. b6+ {[%clk 0:00:14.6]} 49... Kxb6 {[%clk 0:00:05.5]} 50. Kxd6
{[%clk 0:00:15]} 50... Kb5 {[%clk 0:00:06.4]} 51. Ke5 {[%clk 0:00:15.2]} 51...
Kc4 {[%clk 0:00:07.3]} 52. Kxf5 {[%clk 0:00:15.4]} 52... Kd3 {[%clk 0:00:08.2]}
53. Kg4 {[%clk 0:00:14.3]} 53... Ke2 {[%clk 0:00:09.1]} 54. f5 {[%clk
0:00:14.4]} 54... Kf2 {[%clk 0:00:09.9]} 55. f6 {[%clk 0:00:14.8]} 55... Kxg2
{[%clk 0:00:10.5]} 56. f7 {[%clk 0:00:15.1]} 56... Kh1 {[%clk 0:00:09]} 57. f8=Q
{[%clk 0:00:15]} 57... g2 {[%clk 0:00:08.5]} 58. Qf3 {[%clk 0:00:14.9]} 58...
Kh2 {[%clk 0:00:09]} 59. Qxg2+ {[%clk 0:00:14.9]} 59... Kxg2 {[%clk 0:00:09.9]}
60. Kxh4 {[%clk 0:00:15.5]} 1-0

[Event "*** Titled Tuesday Blitz"]
[Site "Chess.com"]
[Date "2021.04.06"]
[Round "10"]
[White "jraosam"]
[Black "2008king"]
[Result "1/2-1/2"]
[WhiteElo "1886"]
[BlackElo "2180"]
[TimeControl "180+1"]
[EndTime "11:57:05 PDT"]
[Termination "Game drawn - timeout vs insufficient material"]

1. d4 {[%clk 0:03:00]} 1... d5 {[%clk 0:02:59]} 2. e3 {[%clk 0:03:00.9]} 2...
Nf6 {[%clk 0:02:58.6]} 3. f4 {[%clk 0:02:46.1]} 3... c5 {[%clk 0:02:58]} 4. c3
{[%clk 0:02:35.7]} 4... Nc6 {[%clk 0:02:57.7]} 5. Nf3 {[%clk 0:02:29.4]} 5...
Bg4 {[%clk 0:02:49.2]} 6. Bd3 {[%clk 0:02:20.9]} 6... e6 {[%clk 0:02:48.4]} 7.
h3 {[%clk 0:02:14]} 7... Bf5 {[%clk 0:02:46.6]} 8. O-O {[%clk 0:02:07.7]} 8...
Bd6 {[%clk 0:02:42.3]} 9. Ne5 {[%clk 0:02:05.2]} 9... O-O {[%clk 0:02:39.2]} 10.
Bxf5 {[%clk 0:01:59]} 10... exf5 {[%clk 0:02:38.1]} 11. Nd2 {[%clk 0:01:52.2]}
11... Ne7 {[%clk 0:01:48]} 12. b3 {[%clk 0:01:46.2]} 12... Rc8 {[%clk
0:01:38.4]} 13. Bb2 {[%clk 0:01:44.9]} 13... Nd7 {[%clk 0:01:37.6]} 14. Rc1
{[%clk 0:01:32.1]} 14... f6 {[%clk 0:01:34.5]} 15. Nxd7 {[%clk 0:01:24.7]} 15...
Qxd7 {[%clk 0:01:35.4]} 16. c4 {[%clk 0:01:20.1]} 16... Rfe8 {[%clk 0:01:28.2]}
17. Nf3 {[%clk 0:01:15.1]} 17... b6 {[%clk 0:01:23.8]} 18. Qd3 {[%clk
0:01:08.8]} 18... Kh8 {[%clk 0:01:11.2]} 19. Ba3 {[%clk 0:01:04.1]} 19... Qe6
{[%clk 0:01:08.4]} 20. Nh4 {[%clk 0:00:55.1]} 20... g6 {[%clk 0:00:55.1]} 21.
cxd5 {[%clk 0:00:55.4]} 21... Qxd5 {[%clk 0:00:51.6]} 22. Rfd1 {[%clk
0:00:47.9]} 22... cxd4 {[%clk 0:00:47]} 23. Rxc8 {[%clk 0:00:43.4]} 23... Nxc8
{[%clk 0:00:41.8]} 24. Bxd6 {[%clk 0:00:42.9]} 24... Nxd6 {[%clk 0:00:42.7]} 25.
Qxd4 {[%clk 0:00:36]} 25... Qxd4 {[%clk 0:00:40.9]} 26. Rxd4 {[%clk 0:00:34.9]}
26... Nb5 {[%clk 0:00:38.5]} 27. Rd5 {[%clk 0:00:30.3]} 27... Nc3 {[%clk
0:00:35.1]} 28. Rd7 {[%clk 0:00:25.6]} 28... Rxe3 {[%clk 0:00:25.5]} 29. Rxa7
{[%clk 0:00:25.5]} 29... Re1+ {[%clk 0:00:19.6]} 30. Kh2 {[%clk 0:00:19.9]}
30... Nd5 {[%clk 0:00:19.7]} 31. Nf3 {[%clk 0:00:14.1]} 31... Re2 {[%clk
0:00:19.6]} 32. Nd4 {[%clk 0:00:13.3]} 32... Rd2 {[%clk 0:00:18.9]} 33. Ne6
{[%clk 0:00:13.5]} 33... h5 {[%clk 0:00:14.5]} 34. Ra8+ {[%clk 0:00:11.8]} 34...
Kh7 {[%clk 0:00:14]} 35. Ra7+ {[%clk 0:00:12.7]} 35... Kh6 {[%clk 0:00:13.4]}
36. Nf8 {[%clk 0:00:11.3]} 36... Rxg2+ {[%clk 0:00:03.9]} 37. Kxg2 {[%clk
0:00:07.6]} 37... Nxf4+ {[%clk 0:00:04.8]} 38. Kf3 {[%clk 0:00:07.8]} 38... Kg5
{[%clk 0:00:05.6]} 39. h4+ {[%clk 0:00:06.5]} 39... Kxh4 {[%clk 0:00:05.7]} 40.
Kxf4 {[%clk 0:00:06.8]} 40... g5+ {[%clk 0:00:06.6]} 41. Kxf5 {[%clk 0:00:06.6]}
41... g4 {[%clk 0:00:07.5]} 42. Kxf6 {[%clk 0:00:07.2]} 42... Kh3 {[%clk
0:00:08.1]} 43. Kg5 {[%clk 0:00:06.1]} 43... g3 {[%clk 0:00:09]} 44. Kxh5 {[%clk
0:00:06.2]} 44... g2 {[%clk 0:00:09.6]} 45. Rg7 {[%clk 0:00:04.9]} 45... Kh2
{[%clk 0:00:10.5]} 46. Rxg2+ {[%clk 0:00:03.9]} 46... Kxg2 {[%clk 0:00:10.8]}
47. Kg5 {[%clk 0:00:04.5]} 47... Kf2 {[%clk 0:00:11.7]} 48. Kf5 {[%clk
0:00:04.8]} 48... Ke2 {[%clk 0:00:12.6]} 49. Ke5 {[%clk 0:00:05.2]} 49... Kd3
{[%clk 0:00:13.5]} 50. Kd5 {[%clk 0:00:05.7]} 50... Kc3 {[%clk 0:00:14.4]} 51.
Kc6 {[%clk 0:00:03]} 51... Kb2 {[%clk 0:00:15.3]} 52. b4 {[%clk 0:00:02]} 52...
Kxa2 {[%clk 0:00:16.2]} 53. b5 {[%clk 0:00:02.1]} 53... Ka3 {[%clk 0:00:17.1]}
54. Kxb6 {[%clk 0:00:02.1]} 54... Kb4 {[%clk 0:00:18]} 55. Kc6 {[%clk
0:00:02.6]} 55... Kc4 {[%clk 0:00:18.9]} 56. b6 {[%clk 0:00:02.5]} 56... Kc3
{[%clk 0:00:19.8]} 57. b7 {[%clk 0:00:02.7]} 57... Kd4 {[%clk 0:00:20.7]} 58.
b8=Q {[%clk 0:00:03]} 58... Ke4 {[%clk 0:00:21.6]} 59. Kd7 {[%clk 0:00:02]}
59... Kf5 {[%clk 0:00:22.5]} 1/2-1/2

[Event "*** Titled Tuesday Blitz"]
[Site "Chess.com"]
[Date "2021.04.06"]
[Round "10"]
[White "Iskusnyh"]
[Black "Murad_Ibrahimli"]
[Result "0-1"]
[WhiteElo "2636"]
[BlackElo "2818"]
[TimeControl "180+1"]
[EndTime "11:57:13 PDT"]
[Termination "Murad_Ibrahimli won on time"]

1. d4 {[%clk 0:03:00.9]} 1... d5 {[%clk 0:02:59.2]} 2. c4 {[%clk 0:03:01.1]}
2... c6 {[%clk 0:02:59.3]} 3. Nf3 {[%clk 0:03:00.5]} 3... Nf6 {[%clk 0:02:59.3]}
4. e3 {[%clk 0:03:01.1]} 4... Bf5 {[%clk 0:02:58.7]} 5. Nc3 {[%clk 0:03:01.5]}
5... e6 {[%clk 0:02:59.2]} 6. Nh4 {[%clk 0:03:01.9]} 6... Bg6 {[%clk 0:02:59.7]}
7. g3 {[%clk 0:02:58.2]} 7... Nbd7 {[%clk 0:02:58.3]} 8. Be2 {[%clk 0:02:57.3]}
8... Bd6 {[%clk 0:02:53.9]} 9. O-O {[%clk 0:02:53.6]} 9... dxc4 {[%clk
0:02:48.5]} 10. Nxg6 {[%clk 0:02:48.2]} 10... hxg6 {[%clk 0:02:48.5]} 11. Bxc4
{[%clk 0:02:48.7]} 11... a6 {[%clk 0:02:48.5]} 12. Bd2 {[%clk 0:02:43.2]} 12...
Qe7 {[%clk 0:02:46.1]} 13. Re1 {[%clk 0:02:22.3]} 13... e5 {[%clk 0:02:39.4]}
14. Bf1 {[%clk 0:02:19.6]} 14... O-O {[%clk 0:02:37.5]} 15. Qc2 {[%clk
0:02:17.5]} 15... Rac8 {[%clk 0:02:30.4]} 16. Bg2 {[%clk 0:02:11.8]} 16... Rfe8
{[%clk 0:02:09.8]} 17. Rad1 {[%clk 0:02:10.2]} 17... exd4 {[%clk 0:01:54]} 18.
exd4 {[%clk 0:02:05.7]} 18... Qd8 {[%clk 0:01:54.3]} 19. Qb3 {[%clk 0:01:55.1]}
19... Qb6 {[%clk 0:01:52.3]} 20. Qxb6 {[%clk 0:01:23.3]} 20... Nxb6 {[%clk
0:01:53.2]} 21. Bg5 {[%clk 0:01:13.1]} 21... Nfd5 {[%clk 0:01:45]} 22. Rxe8+
{[%clk 0:00:57.1]} 22... Rxe8 {[%clk 0:01:43.7]} 23. Ne4 {[%clk 0:00:57.6]}
23... Be7 {[%clk 0:01:37.2]} 24. Bc1 {[%clk 0:00:52.2]} 24... Nd7 {[%clk
0:01:30.6]} 25. Bf3 {[%clk 0:00:44]} 25... a5 {[%clk 0:01:20.4]} 26. Bd2 {[%clk
0:00:34.2]} 26... a4 {[%clk 0:01:15.5]} 27. Nc3 {[%clk 0:00:29.5]} 27... N7b6
{[%clk 0:01:11.8]} 28. Kf1 {[%clk 0:00:27.5]} 28... Bf6 {[%clk 0:00:57.6]} 29.
Be1 {[%clk 0:00:22]} 29... Rd8 {[%clk 0:00:53.1]} 30. Ne4 {[%clk 0:00:21.2]}
30... Nc4 {[%clk 0:00:50.9]} 31. b3 {[%clk 0:00:16.2]} 31... axb3 {[%clk
0:00:48.2]} 32. axb3 {[%clk 0:00:11.6]} 32... Nce3+ {[%clk 0:00:48]} 33. fxe3
{[%clk 0:00:11.4]} 33... Nxe3+ {[%clk 0:00:48.9]} 34. Ke2 {[%clk 0:00:09]} 34...
Nxd1 {[%clk 0:00:49.5]} 35. Nxf6+ {[%clk 0:00:09.2]} 35... gxf6 {[%clk
0:00:49.4]} 36. Kxd1 {[%clk 0:00:09.7]} 36... Rxd4+ {[%clk 0:00:50]} 37. Ke2
{[%clk 0:00:10.4]} 37... f5 {[%clk 0:00:48.8]} 38. Bc3 {[%clk 0:00:09.6]} 38...
Rd8 {[%clk 0:00:49.4]} 39. Bf6 {[%clk 0:00:08.8]} 39... Rd6 {[%clk 0:00:48.1]}
40. Bc3 {[%clk 0:00:07.9]} 40... Re6+ {[%clk 0:00:45.8]} 41. Kd3 {[%clk
0:00:07.5]} 41... Kf8 {[%clk 0:00:46.3]} 42. h4 {[%clk 0:00:07.3]} 42... Ke7
{[%clk 0:00:45.7]} 43. Bb4+ {[%clk 0:00:07.3]} 43... Kd7 {[%clk 0:00:45.8]} 44.
Bc3 {[%clk 0:00:07.7]} 44... Rd6+ {[%clk 0:00:44.9]} 45. Ke2 {[%clk 0:00:07]}
45... Ke6 {[%clk 0:00:45.4]} 46. Bd2 {[%clk 0:00:06.9]} 46... Rd8 {[%clk
0:00:42.7]} 47. Bf4 {[%clk 0:00:06.6]} 47... Ra8 {[%clk 0:00:42.4]} 48. Kd3
{[%clk 0:00:06.8]} 48... Ra2 {[%clk 0:00:40.6]} 49. h5 {[%clk 0:00:06.2]} 49...
gxh5 {[%clk 0:00:39.6]} 50. Bxh5 {[%clk 0:00:05.9]} 50... c5 {[%clk 0:00:19]}
51. Kc3 {[%clk 0:00:04.3]} 51... b5 {[%clk 0:00:18.9]} 52. Bf3 {[%clk
0:00:04.3]} 52... Rf2 {[%clk 0:00:17.1]} 53. Bb7 {[%clk 0:00:04]} 53... Rf1
{[%clk 0:00:06.1]} 0-1